fUSD/lending_fUSD_20240426
["ID","MTS","AMOUNT","RATE_DAILY","PERIOD"]
[323693276,1714165901665,-3137.06,0.00015068,2]
[323693277,1714165901676,-578.95,0.00015068,2]
[323693278,1714165901687,-995.94,0.00015068,2]
[323693279,1714165901699,-500.0,0.00015068,2]
[323693280,1714165901709,-2682.02,0.00015068,2]
[323693281,1714165901721,-500.0,0.00015068,2]
[323693282,1714165901732,-500.0,0.00015068,2]
[323693283,1714165901743,-1815.94,0.00015068,2]
[323693284,1714165901753,-500.0,0.00015068,2]
[323693285,1714165901764,-300.0,0.00015068,2]
[323693286,1714165901775,-220.27,0.00015307,2]
[323693287,1714165901785,-500.0,0.00015342,2]
[323693288,1714165901796,-615.87,0.00015342,2]
[323693289,1714165901807,-500.0,0.00015342,2]
[323693290,1714165901817,-609.49,0.00015342,2]
[323693291,1714165901828,-654.47,0.00015342,2]
[323693292,1714165901839,-678.23,0.00015342,2]
[323693293,1714165901850,-613.12,0.00015342,2]
[323693294,1714165901861,-646.77,0.00015342,2]
[323693295,1714165901872,-530.65,0.00015342,2]
[323693296,1714165901883,-880.46,0.00015342,2]
[323693297,1714165901893,-1006.3,0.00015342,2]
[323693298,1714165901904,-500.0,0.00015342,2]
[323693299,1714165901915,-1261.56,0.00015342,2]
[323693300,1714165901926,-504.93,0.00015342,2]
[323693301,1714165901936,-1360.51,0.00015342,2]
[323693302,1714165901947,-1108.07,0.00015342,2]
[323693303,1714165901958,-822.7,0.00015342,2]
[323693304,1714165901969,-543.02,0.00015342,2]
[323693305,1714165901981,-500.0,0.00015342,2]
[323693306,1714165901991,-1146.38,0.00015342,2]
[323693307,1714165902002,-1304.31,0.00015342,2]
[323693308,1714165902014,-560.91,0.00015342,2]
[323693309,1714165902025,-500.0,0.00015342,2]
[323693310,1714165902036,-500.0,0.00015342,2]
[323693311,1714165902047,-215.86781093,0.00015342,2]
[323693312,1714165902058,-921.09,0.00015342,2]
[323693313,1714165902070,-500.0,0.00015342,2]
[323693314,1714165902081,-700.07,0.00015342,2]
[323693315,1714165902093,-1367.84,0.00015342,2]
[323693316,1714165902103,-760.98,0.00015342,2]
[323693317,1714165902114,-748.97,0.00015342,2]
[323693318,1714165902125,-492.67454005,0.00015342,2]
[323693319,1714165902137,-726.54,0.00015342,2]
[323693320,1714165902477,-550.92,0.00015342,2]
[323693321,1714165902490,-1430.99,0.00015342,2]
[323693322,1714165902501,-570.48,0.00015342,2]
[323693323,1714165902512,-676.01,0.00015342,2]
[323693324,1714165902522,-500.0,0.00015342,2]
[323693325,1714165902534,-1217.26,0.00015342,2]
[323693326,1714165902542,-792.02,0.00015342,2]
[323693327,1714165902552,-500.0,0.00015342,2]
[323693328,1714165902563,-725.24,0.00015342,2]
[323693329,1714165902574,-872.88,0.00015342,2]
[323693330,1714165902585,-940.41,0.00015342,2]
[323693331,1714165902598,-509.95,0.00015342,2]
[323693332,1714165902609,-195.97981434,0.00015342,2]
[323693333,1714165902620,-803.02,0.00015342,2]
[323693334,1714165902630,-363.21,0.00015342,2]
[323693335,1714165902640,-501.36902089,0.00015342,2]
[323693336,1714165902649,-749.95,0.00015342,2]
[323693337,1714165902659,-527.35,0.00015342,2]
[323693338,1714165902671,-500.0,0.00015342,2]
[323693339,1714165902681,-565.11,0.00015342,2]
[323693340,1714165902690,-656.68,0.00015342,2]
[323693341,1714165902699,-626.53,0.00015342,2]
[323693342,1714165902709,-1008.89,0.00015342,2]
[323693343,1714165902718,-837.59,0.00015342,2]
[323693344,1714165902727,-525.53,0.00015342,2]
[323693345,1714165902736,-565.57,0.00015342,2]
[323693346,1714165902745,-1849.17,0.00015342,2]
[323693347,1714165902754,-500.0,0.00015342,2]
[323693348,1714165902763,-1095.79,0.00015342,2]
[323693349,1714165902773,-500.0,0.00015342,2]
[323693350,1714165902782,-1100.72,0.00015342,2]
[323693351,1714165902791,-500.0,0.00015342,2]
[323693352,1714165902800,-609.39,0.00015342,2]
[323693353,1714165902809,-500.0,0.00015342,2]
[323693354,1714165902818,-1415.44,0.00015342,2]
[323693355,1714165902827,-721.08,0.00015342,2]
[323693356,1714165902836,-228.34691834,0.00015342,2]
[323693357,1714165902846,-521.34,0.00015342,2]
[323693358,1714165902855,-5617.73,0.00015342,2]
[323693359,1714165902864,-8630.93,0.00015342,2]
[323693360,1714165902873,-1052.38,0.00015342,2]
[323693361,1714165902882,-500.0,0.00015342,2]
[323693362,1714165902891,-1229.82,0.00015342,2]
[323693363,1714165902901,-6867.51,0.00015342,2]
[323693364,1714165902910,-600.27,0.00015342,2]
[323693365,1714165902920,-1794.51,0.00015342,2]
[323693366,1714165902929,-7720.32,0.00015342,2]
[323693367,1714165902938,-1596.74,0.00015342,2]
[323693368,1714165902947,-2414.19,0.00015342,2]
[323693369,1714165902957,-500.0,0.00015342,2]
[323693370,1714165902966,-2546.68,0.00015342,2]
[323693371,1714165902975,-11893.77,0.00015342,2]
[323693372,1714165902984,-500.0,0.00015342,2]
[323693373,1714165902994,-1472.99,0.00015342,2]
[323693374,1714165903003,-1714.54,0.00015342,2]
[323693375,1714165903014,-500.0,0.00015342,2]
[323693376,1714165903023,-3379.18,0.00015342,2]
[323693377,1714165903032,-746.33,0.00015342,2]
[323693378,1714165903041,-500.0,0.00015342,2]
[323693379,1714165903051,-1131.17,0.00015342,2]
[323693380,1714165903060,-1362.32,0.00015342,2]
[323693381,1714165903070,-635.79,0.00015342,2]
[323693382,1714165903080,-1226.03,0.00015342,2]
[323693383,1714165903089,-1261.3,0.00015342,2]
[323693384,1714165903099,-2565.0,0.00015342,2]
[323693385,1714165903108,-6474.87,0.00015342,2]
[323693386,1714165903117,-626.49,0.00015342,2]
[323693387,1714165903130,-5265.92,0.00015342,2]
[323693388,1714165903139,-7575.76,0.00015342,2]
[323693389,1714165903149,-959.47,0.00015342,2]
[323693390,1714165903158,-500.0,0.00015342,2]
[323693391,1714165903167,-894.84,0.00015342,2]
[323693392,1714165903176,-1029.44,0.00015342,2]
[323693393,1714165903185,-1594.94,0.00015342,2]
[323693394,1714165903194,-1585.92,0.00015342,2]
[323693395,1714165903203,-927.21,0.00015342,2]
[323693396,1714165903212,-29278.54,0.00015342,2]
[323693397,1714165903222,-598.42,0.00015342,2]
[323693398,1714165903231,-2169.32,0.00015342,2]
[323693399,1714165903240,-1031.64,0.00015342,2]
[323693400,1714165903249,-500.0,0.00015342,2]
[323693401,1714165903258,-3003.77,0.00015342,2]
[323693402,1714165903268,-500.0,0.00015342,2]
[323693403,1714165903277,-885.97,0.00015342,2]
[323693404,1714165903287,-1452.7,0.00015342,2]
[323693405,1714165903301,-964.95,0.00015342,2]
[323693406,1714165903310,-1299.05,0.00015342,2]
[323693407,1714165903320,-6953.47,0.00015342,2]
[323693408,1714165903329,-598.29,0.00015342,2]
[323693409,1714165903339,-2182.8,0.00015342,2]
[323693410,1714165903349,-301.09261735,0.00015342,2]
[323693411,1714165903358,-2149.24,0.00015342,2]
[323693412,1714165903368,-1173.04,0.00015342,2]
[323693413,1714165903378,-831.79,0.00015342,2]
[323693414,1714165903387,-2022.3,0.00015342,2]
[323693415,1714165903396,-4234.92,0.00015342,2]
[323693416,1714165903406,-2096.72,0.00015342,2]
[323693417,1714165903414,-1713.59,0.00015342,2]
[323693418,1714165903424,-625.39,0.00015342,2]
[323693419,1714165903433,-3159.71,0.00015342,2]
[323693420,1714165903443,-1338.07,0.00015342,2]
[323693421,1714165903452,-629.77,0.00015342,2]
[323693422,1714165903461,-15953.33,0.00015342,2]
[323693423,1714165903470,-500.0,0.00015342,2]
[323693424,1714165903480,-8716.91,0.00015342,2]
[323693425,1714165903489,-2333.3,0.00015342,2]
[323693426,1714165903499,-2250.5,0.00015342,2]
[323693427,1714165903509,-4686.34,0.00015342,2]
[323693428,1714165903518,-2136.27,0.00015342,2]
[323693429,1714165903528,-1350.24,0.00015342,2]
[323693430,1714165903541,-1193.75,0.00015342,2]
[323693431,1714165903550,-1860.65,0.00015342,2]
[323693432,1714165903559,-1152.1,0.00015342,2]
[323693433,1714165903570,-3493.58,0.00015342,2]
[323693434,1714165903579,-720.21,0.00015342,2]
[323693435,1714165903588,-1609.49,0.00015342,2]
[323693436,1714165903598,-743.96,0.00015342,2]
[323693437,1714165903607,-4354.83,0.00015342,2]
[323693438,1714165903617,-902.48,0.00015342,2]
[323693439,1714165903626,-771.76,0.00015342,2]
[323693440,1714165903635,-937.47,0.00015342,2]
[323693441,1714165903645,-563.05,0.00015342,2]
[323693442,1714165903654,-1806.19,0.00015342,2]
[323693443,1714165903664,-1571.07,0.00015342,2]
[323693444,1714165903674,-2572.91,0.00015342,2]
[323693445,1714165903683,-1736.03,0.00015342,2]
[323693446,1714165903693,-4550.03,0.00015342,2]
[323693447,1714165903703,-702.48,0.00015342,2]
[323693448,1714165903712,-2483.94,0.00015342,2]
[323693449,1714165903722,-683.53,0.00015342,2]
[323693450,1714165903732,-2118.68,0.00015342,2]
[323693451,1714165903742,-2305.98,0.00015342,2]
[323693452,1714165903751,-2824.94,0.00015342,2]
[323693453,1714165903761,-1519.98,0.00015342,2]
[323693454,1714165903770,-1443.87,0.00015342,2]
[323693455,1714165903780,-1079.67,0.00015342,2]
[323693456,1714165903789,-5799.26,0.00015342,2]
[323693457,1714165903798,-500.0,0.00015342,2]
[323693458,1714165903807,-2700.57,0.00015342,2]
[323693459,1714165903817,-1958.57,0.00015342,2]
[323693460,1714165903827,-1238.29,0.00015342,2]
[323693461,1714165903837,-2076.33,0.00015342,2]
[323693462,1714165903847,-726.92,0.00015342,2]
[323693463,1714165903857,-3054.76,0.00015342,2]
[323693464,1714165903867,-978.83,0.00015342,2]
[323693465,1714165903876,-2476.96,0.00015342,2]
[323693466,1714165903887,-897.14,0.00015342,2]
[323693467,1714165903898,-1563.14,0.00015342,2]
[323693468,1714165903908,-1893.28,0.00015342,2]
[323693469,1714165903917,-1013.72,0.00015342,2]
[323693470,1714165903927,-900.63,0.00015342,2]
[323693471,1714165903936,-718.21,0.00015342,2]
[323693472,1714165903945,-555.79,0.00015342,2]
[323693473,1714165903955,-6088.6,0.00015342,2]
[323693474,1714165903965,-1066.3,0.00015342,2]
[323693475,1714165903974,-505.04,0.00015342,2]
[323693476,1714165903984,-500.0,0.00015342,2]
[323693477,1714165903993,-2410.31,0.00015342,2]
[323693478,1714165904003,-820.43,0.00015342,2]
[323693479,1714165904014,-523.49,0.00015342,2]
[323693480,1714165904023,-908.81,0.00015342,2]
[323693481,1714165904033,-500.0,0.00015342,2]
[323693482,1714165904043,-1371.32,0.00015342,2]
[323693483,1714165904053,-2025.12,0.00015342,2]
[323693484,1714165904063,-560.23,0.00015342,2]
[323693485,1714165904074,-3137.06,0.00015342,2]
[323693486,1714165904083,-578.95,0.00015342,2]
[323693487,1714165904093,-995.94,0.00015342,2]
[323693488,1714165904103,-500.0,0.00015342,2]
[323693489,1714165904113,-2682.02,0.00015342,2]
[323693490,1714165904122,-500.0,0.00015342,2]
[323693491,1714165904132,-500.0,0.00015342,2]
[323693492,1714165904141,-1815.94,0.00015342,2]
[323693493,1714165904152,-201.521508,0.00015342,2]
[323693494,1714165904161,-155.0,0.000155,2]
[323693495,1714165904171,-1000.0,0.000155,4]
[323693496,1714165904181,-1000.0,0.000155,4]
[323693497,1714165904191,-842.0,0.000155,3]
[323693498,1714165904201,-150.0,0.000155,2]
[323693499,1714165904212,-150.0,0.000155,2]
[323693500,1714165904221,-1137.0,0.00015507,2]
[323693501,1714165904231,-500.0,0.00015616,2]
[323693502,1714165904241,-615.87,0.00015616,2]
[323693503,1714165904250,-500.0,0.00015616,2]
[323693504,1714165904260,-609.49,0.00015616,2]
[323693505,1714165904269,-654.47,0.00015616,2]
[323693506,1714165904279,-678.23,0.00015616,2]
[323693507,1714165904288,-613.12,0.00015616,2]
[323693508,1714165904300,-646.77,0.00015616,2]
[323693509,1714165904309,-530.65,0.00015616,2]
[323693510,1714165904319,-880.46,0.00015616,2]
[323693511,1714165904330,-1006.3,0.00015616,2]
[323693512,1714165904339,-500.0,0.00015616,2]
[323693513,1714165904348,-1261.56,0.00015616,2]
[323693514,1714165904357,-504.93,0.00015616,2]
[323693515,1714165904367,-1360.51,0.00015616,2]
[323693516,1714165904377,-1108.07,0.00015616,2]
[323693517,1714165904386,-822.7,0.00015616,2]
[323693518,1714165904396,-543.02,0.00015616,2]
[323693519,1714165904405,-500.0,0.00015616,2]
[323693520,1714165904415,-1146.38,0.00015616,2]
[323693521,1714165904424,-1304.31,0.00015616,2]
[323693522,1714165904434,-560.91,0.00015616,2]
[323693523,1714165904443,-500.0,0.00015616,2]
[323693524,1714165904452,-500.0,0.00015616,2]
[323693525,1714165904462,-921.09,0.00015616,2]
[323693526,1714165904471,-500.0,0.00015616,2]
[323693527,1714165904480,-700.07,0.00015616,2]
[323693528,1714165904490,-1367.84,0.00015616,2]
[323693529,1714165904499,-760.98,0.00015616,2]
[323693530,1714165904508,-748.97,0.00015616,2]
[323693531,1714165904518,-726.54,0.00015616,2]
[323693532,1714165904527,-550.92,0.00015616,2]
[323693533,1714165904537,-1430.99,0.00015616,2]
[323693534,1714165904547,-570.48,0.00015616,2]
[323693535,1714165904556,-676.01,0.00015616,2]
[323693536,1714165904565,-613.00530994,0.00015616,2]
[323693537,1714165904575,-1217.26,0.00015616,2]
[323693538,1714165904585,-792.02,0.00015616,2]
[323693539,1714165904594,-500.0,0.00015616,2]
[323693540,1714165904604,-725.24,0.00015616,2]
[323693541,1714165904613,-872.88,0.00015616,2]
[323693542,1714165904622,-940.41,0.00015616,2]
[323693543,1714165904632,-509.95,0.00015616,2]
[323693544,1714165904641,-803.02,0.00015616,2]
[323693545,1714165904650,-363.21,0.00015616,2]
[323693546,1714165904659,-749.95,0.00015616,2]
[323693547,1714165904669,-527.35,0.00015616,2]
[323693548,1714165904679,-500.0,0.00015616,2]
[323693549,1714165904688,-565.11,0.00015616,2]
[323693550,1714165904698,-656.68,0.00015616,2]
[323693551,1714165904707,-626.53,0.00015616,2]
[323693552,1714165904717,-1008.89,0.00015616,2]
[323693553,1714165904726,-837.59,0.00015616,2]
[323693554,1714165904735,-525.53,0.00015616,2]
[323693555,1714165904745,-565.57,0.00015616,2]
[323693556,1714165904754,-1849.17,0.00015616,2]
[323693557,1714165904764,-500.0,0.00015616,2]
[323693558,1714165904774,-1095.79,0.00015616,2]
[323693559,1714165904783,-500.0,0.00015616,2]
[323693560,1714165904793,-1100.72,0.00015616,2]
[323693561,1714165904802,-191.81596245,0.00015616,2]
[323693562,1714165904811,-609.39,0.00015616,2]
[323693563,1714165904821,-500.0,0.00015616,2]
[323693564,1714165904830,-1415.44,0.00015616,2]
[323693565,1714165904840,-721.08,0.00015616,2]
[323693566,1714165904850,-521.34,0.00015616,2]
[323693567,1714165904860,-5617.73,0.00015616,2]
[323693568,1714165904869,-8630.93,0.00015616,2]
[323693569,1714165904878,-1052.38,0.00015616,2]
[323693570,1714165904888,-500.0,0.00015616,2]
[323693571,1714165904897,-1229.82,0.00015616,2]
[323693572,1714165904906,-6867.51,0.00015616,2]
[323693573,1714165904916,-600.27,0.00015616,2]
[323693574,1714165904926,-1794.51,0.00015616,2]
[323693575,1714165904935,-7720.32,0.00015616,2]
[323693576,1714165904945,-1596.74,0.00015616,2]
[323693577,1714165904955,-2414.19,0.00015616,2]
[323693578,1714165904964,-500.0,0.00015616,2]
[323693579,1714165904973,-2546.68,0.00015616,2]
[323693580,1714165904982,-11893.77,0.00015616,2]
[323693581,1714165904991,-500.0,0.00015616,2]
[323693582,1714165905001,-1472.99,0.00015616,2]
[323693583,1714165905010,-1714.54,0.00015616,2]
[323693584,1714165905020,-500.0,0.00015616,2]
[323693585,1714165905029,-3379.18,0.00015616,2]
[323693586,1714165905039,-746.33,0.00015616,2]
[323693587,1714165905048,-500.0,0.00015616,2]
[323693588,1714165905058,-1131.17,0.00015616,2]
[323693589,1714165905067,-1362.32,0.00015616,2]
[323693590,1714165905079,-635.79,0.00015616,2]
[323693591,1714165905089,-1226.03,0.00015616,2]
[323693592,1714165905098,-1261.3,0.00015616,2]
[323693593,1714165905107,-2565.0,0.00015616,2]
[323693594,1714165905117,-6474.87,0.00015616,2]
[323693595,1714165905126,-626.49,0.00015616,2]
[323693596,1714165905135,-5265.92,0.00015616,2]
[323693597,1714165905145,-7575.76,0.00015616,2]
[323693598,1714165905155,-959.47,0.00015616,2]
[323693599,1714165905164,-500.0,0.00015616,2]
[323693600,1714165905174,-894.84,0.00015616,2]
[323693601,1714165905183,-1029.44,0.00015616,2]
[323693602,1714165905192,-1594.94,0.00015616,2]
[323693603,1714165905201,-1585.92,0.00015616,2]
[323693604,1714165905211,-927.21,0.00015616,2]
[323693605,1714165905220,-29278.54,0.00015616,2]
[323693606,1714165905230,-598.42,0.00015616,2]
[323693607,1714165905239,-2169.32,0.00015616,2]
[323693608,1714165905249,-1031.64,0.00015616,2]
[323693609,1714165905258,-500.0,0.00015616,2]
[323693610,1714165905268,-3003.77,0.00015616,2]
[323693611,1714165905448,-500.0,0.00015616,2]
[323693612,1714165905464,-885.97,0.00015616,2]
[323693613,1714165905473,-1452.7,0.00015616,2]
[323693614,1714165905483,-964.95,0.00015616,2]
[323693615,1714165905493,-1299.05,0.00015616,2]
[323693616,1714165905503,-6953.47,0.00015616,2]
[323693617,1714165905513,-598.29,0.00015616,2]
[323693618,1714165905522,-2182.8,0.00015616,2]
[323693619,1714165905531,-2149.24,0.00015616,2]
[323693620,1714165905541,-1173.04,0.00015616,2]
[323693621,1714165905550,-831.79,0.00015616,2]
[323693622,1714165905560,-2022.3,0.00015616,2]
[323693623,1714165905569,-4234.92,0.00015616,2]
[323693624,1714165905579,-2096.72,0.00015616,2]
[323693625,1714165905587,-1713.59,0.00015616,2]
[323693626,1714165905597,-625.39,0.00015616,2]
[323693627,1714165905607,-3159.71,0.00015616,2]
[323693628,1714165905617,-1338.07,0.00015616,2]
[323693629,1714165905626,-629.77,0.00015616,2]
[323693630,1714165905636,-15953.33,0.00015616,2]
[323693631,1714165905646,-500.0,0.00015616,2]
[323693632,1714165905655,-8716.91,0.00015616,2]
[323693633,1714165905665,-2333.3,0.00015616,2]
[323693634,1714165905675,-2250.5,0.00015616,2]
[323693635,1714165905684,-4686.34,0.00015616,2]
[323693636,1714165905700,-2136.27,0.00015616,2]
[323693637,1714165905714,-1350.24,0.00015616,2]
[323693638,1714165905724,-1193.75,0.00015616,2]
[323693639,1714165905734,-1860.65,0.00015616,2]
[323693640,1714165905745,-1152.1,0.00015616,2]
[323693641,1714165905755,-3493.58,0.00015616,2]
[323693642,1714165905765,-720.21,0.00015616,2]
[323693643,1714165905775,-1609.49,0.00015616,2]
[323693644,1714165905785,-743.96,0.00015616,2]
[323693645,1714165905795,-4354.83,0.00015616,2]
[323693646,1714165905805,-902.48,0.00015616,2]
[323693647,1714165905815,-771.76,0.00015616,2]
[323693648,1714165905825,-937.47,0.00015616,2]
[323693649,1714165905836,-563.05,0.00015616,2]
[323693650,1714165905846,-1806.19,0.00015616,2]
[323693651,1714165905856,-1571.07,0.00015616,2]
[323693652,1714165905867,-2572.91,0.00015616,2]
[323693653,1714165905877,-1736.03,0.00015616,2]
[323693654,1714165905887,-4550.03,0.00015616,2]
[323693655,1714165905897,-702.48,0.00015616,2]
[323693656,1714165905907,-2483.94,0.00015616,2]
[323693657,1714165905917,-683.53,0.00015616,2]
[323693658,1714165905928,-2118.68,0.00015616,2]
[323693659,1714165905938,-2305.98,0.00015616,2]
[323693660,1714165905948,-2824.94,0.00015616,2]
[323693661,1714165905960,-1519.98,0.00015616,2]
[323693662,1714165905970,-1443.87,0.00015616,2]
[323693663,1714165905980,-1079.67,0.00015616,2]
[323693664,1714165905990,-5799.26,0.00015616,2]
[323693665,1714165905999,-500.0,0.00015616,2]
[323693666,1714165906009,-2700.57,0.00015616,2]
[323693667,1714165906020,-1958.57,0.00015616,2]
[323693668,1714165906029,-1238.29,0.00015616,2]
[323693669,1714165906039,-2076.33,0.00015616,2]
[323693670,1714165906048,-726.92,0.00015616,2]
[323693671,1714165906059,-3054.76,0.00015616,2]
[323693672,1714165906069,-978.83,0.00015616,2]
[323693673,1714165906078,-2476.96,0.00015616,2]
[323693674,1714165906088,-897.14,0.00015616,2]
[323693675,1714165906097,-1563.14,0.00015616,2]
[323693676,1714165906107,-1893.28,0.00015616,2]
[323693677,1714165906117,-1013.72,0.00015616,2]
[323693678,1714165906127,-900.63,0.00015616,2]
[323693679,1714165906137,-718.21,0.00015616,2]
[323693680,1714165906147,-555.79,0.00015616,2]
[323693681,1714165906157,-6088.6,0.00015616,2]
[323693682,1714165906167,-1066.3,0.00015616,2]
[323693683,1714165906177,-505.04,0.00015616,2]
[323693684,1714165906187,-500.0,0.00015616,2]
[323693685,1714165906198,-2410.31,0.00015616,2]
[323693686,1714165906208,-820.43,0.00015616,2]
[323693687,1714165906218,-523.49,0.00015616,2]
[323693688,1714165906227,-908.81,0.00015616,2]
[323693689,1714165906237,-500.0,0.00015616,2]
[323693690,1714165906246,-1371.32,0.00015616,2]
[323693691,1714165906256,-2025.12,0.00015616,2]
[323693692,1714165906265,-560.23,0.00015616,2]
[323693693,1714165906275,-3137.06,0.00015616,2]
[323693694,1714165906284,-578.95,0.00015616,2]
[323693695,1714165906297,-995.94,0.00015616,2]
[323693696,1714165906307,-408.79979156,0.00015616,2]
[323693697,1714165906316,-2682.02,0.00015616,2]
[323693698,1714165906328,-500.0,0.00015616,2]
[323693699,1714165906338,-500.0,0.00015616,2]
[323693700,1714165906347,-387.74292033,0.00015722,2]
[323693701,1714165906359,-167.0,0.00015831,2]
[323693702,1714165906368,-167.0,0.00015831,2]
[323693703,1714165906378,-500.0,0.0001589,2]
[323693704,1714165906388,-615.87,0.0001589,2]
[323693705,1714165906398,-500.0,0.0001589,2]
[323693706,1714165906408,-609.49,0.0001589,2]
[323693707,1714165906419,-654.47,0.0001589,2]
[323693708,1714165906429,-678.23,0.0001589,2]
[323693709,1714165906440,-613.12,0.0001589,2]
[323693710,1714165906449,-646.77,0.0001589,2]
[323693711,1714165906459,-530.65,0.0001589,2]
[323693712,1714165906468,-880.46,0.0001589,2]
[323693713,1714165906478,-1006.3,0.0001589,2]
[323693714,1714165906488,-500.0,0.0001589,2]
[323693715,1714165906497,-1261.56,0.0001589,2]
[323693716,1714165906507,-504.93,0.0001589,2]
[323693717,1714165906517,-1360.51,0.0001589,2]
[323693718,1714165906526,-1108.07,0.0001589,2]
[323693719,1714165906537,-822.7,0.0001589,2]
[323693720,1714165906547,-543.02,0.0001589,2]
[323693721,1714165906557,-500.0,0.0001589,2]
[323693722,1714165906567,-1146.38,0.0001589,2]
[323693723,1714165906578,-1304.31,0.0001589,2]
[323693724,1714165906587,-560.91,0.0001589,2]
[323693725,1714165906598,-562.57052179,0.0001589,2]
[323693726,1714165906608,-500.0,0.0001589,2]
[323693727,1714165906617,-921.09,0.0001589,2]
[323693728,1714165906628,-500.0,0.0001589,2]
[323693729,1714165906638,-700.07,0.0001589,2]
[323693730,1714165906647,-1367.84,0.0001589,2]
[323693731,1714165906658,-760.98,0.0001589,2]
[323693732,1714165906667,-748.97,0.0001589,2]
[323693733,1714165906677,-726.54,0.0001589,2]
[323693734,1714165906687,-550.92,0.0001589,2]
[323693735,1714165906696,-1430.99,0.0001589,2]
[323693736,1714165906706,-570.48,0.0001589,2]
[323693737,1714165906716,-676.01,0.0001589,2]
[323693738,1714165906726,-1217.26,0.0001589,2]
[323693739,1714165906735,-792.02,0.0001589,2]
[323693740,1714165906745,-500.0,0.0001589,2]
[323693741,1714165906754,-725.24,0.0001589,2]
[323693742,1714165906763,-872.88,0.0001589,2]
[323693743,1714165906773,-940.41,0.0001589,2]
[323693744,1714165906783,-509.95,0.0001589,2]
[323693745,1714165906792,-803.02,0.0001589,2]
[323693746,1714165906802,-363.21,0.0001589,2]
[323693747,1714165906811,-749.95,0.0001589,2]
[323693748,1714165906821,-527.35,0.0001589,2]
[323693749,1714165906831,-326.32,0.0001589,2]
[323693750,1714165906840,-565.11,0.0001589,2]
[323693751,1714165906849,-656.68,0.0001589,2]
[323693752,1714165906859,-626.53,0.0001589,2]
[323693753,1714165906868,-1008.89,0.0001589,2]
[323693754,1714165906878,-837.59,0.0001589,2]
[323693755,1714165906888,-525.53,0.0001589,2]
[323693756,1714165906898,-565.57,0.0001589,2]
[323693757,1714165906908,-1849.17,0.0001589,2]
[323693758,1714165906917,-500.0,0.0001589,2]
[323693759,1714165906927,-1095.79,0.0001589,2]
[323693760,1714165906936,-500.0,0.0001589,2]
[323693761,1714165906946,-1100.72,0.0001589,2]
[323693762,1714165906956,-609.39,0.0001589,2]
[323693763,1714165906965,-335.34677121,0.0001589,2]
[323693764,1714165906975,-1415.44,0.0001589,2]
[323693765,1714165906985,-721.08,0.0001589,2]
[323693766,1714165906994,-521.34,0.0001589,2]
[323693767,1714165907004,-5617.73,0.0001589,2]
[323693768,1714165907014,-8630.93,0.0001589,2]
[323693769,1714165907023,-1052.38,0.0001589,2]
[323693770,1714165907033,-500.0,0.0001589,2]
[323693771,1714165907042,-1229.82,0.0001589,2]
[323693772,1714165907052,-6867.51,0.0001589,2]
[323693773,1714165907062,-600.27,0.0001589,2]
[323693774,1714165907072,-1794.51,0.0001589,2]
[323693775,1714165907081,-7720.32,0.0001589,2]